bitfinex-derivatives/quotes_SOLF0:USTF0_20250428
["timestamp","ask_amount","ask_price","bid_price","bid_amount"]
[1745862208842,25.36,146.57,146.52,6.8232]
[1745862209152,6.8223,146.55,146.52,6.8232]
[1745862209354,25.36,146.57,146.51,6.8233]
[1745862209553,14.76359957,146.56,146.51,6.8233]
[1745862211160,14.76359957,146.56,146.51,6.8237]
[1745862211349,14.76359957,146.56,146.49,14.76359957]
[1745862211654,6.8226,146.54,146.51,6.8233]
[1745862212254,6.8226,146.54,146.52,6.8232]
[1745862212958,6.8221,146.55,146.53,6.8227]
[1745862213652,25.36,146.58,146.51,14.76359957]
[1745862214054,25.36,146.58,146.51,16.68959957]
[1745862214249,6.8212,146.57,146.54,6.8219]
[1745862214447,6.8212,146.57,146.51,16.68959957]
[1745862214757,6.8208,146.58,146.51,18.70029957]
[1745862215058,25.36,146.61,146.53,14.76359957]
[1745862215355,6.8202,146.59,146.53,14.76359957]
[1745862217360,6.8199,146.6,146.53,14.76359957]
[1745862217758,6.8199,146.6,146.57,6.8207]
[1745862219360,6.82,146.59,146.57,6.8207]
[1745862219657,25.36,146.61,146.57,6.8207]
[1745862219856,6.8198,146.6,146.57,6.8207]
[1745862221764,6.82,146.59,146.57,6.8207]
[1745862223457,6.8198,146.6,146.57,6.8207]
[1745862223659,14.76359957,146.7,146.59,14.76359957]
[1745862223870,25.36,146.68,146.62,14.76359957]
[1745862224165,6.8156,146.69,146.64,14.76359957]
[1745862224458,27.4047,146.71,146.66,14.76359957]
[1745862224764,6.8151,146.7,146.66,14.76359957]
[1745862225163,34.2193,146.71,146.68,6.8155]
[1745862225354,34.2193,146.71,146.66,14.76359957]
[1745862225355,27.4047,146.71,146.66,14.76359957]
[1745862226162,6.8149,146.7,146.67,6.816]
[1745862227563,6.8149,146.7,146.68,6.8158]
[1745862227765,6.8149,146.7,146.66,14.76359957]
[1745862228059,6.8154,146.69,146.66,14.76359957]
[1745862228465,27.4047,146.71,146.66,14.76359957]
[1745862228666,6.8151,146.7,146.66,14.76359957]
[1745862228865,6.8151,146.7,146.67,6.816]
[1745862237778,6.8154,146.69,146.67,6.816]
[1745862238068,2.0447,146.71,146.67,6.816]
[1745862238573,6.815,146.7,146.67,6.816]
[1745862239371,6.8154,146.69,146.67,6.816]
[1745862239573,2.0447,146.71,146.67,6.816]
[1745862239772,6.8152,146.7,146.67,6.816]
[1745862243076,6.8156,146.69,146.66,21.58009957]
[1745862243573,6.8153,146.7,146.67,6.816]
[1745862243973,6.8153,146.7,146.66,14.76359957]
[1745862244277,6.8153,146.7,146.67,6.8162]
[1745862244574,6.8153,146.7,146.66,14.76359957]
[1745862244775,6.8153,146.7,146.67,6.8159]
[1745862245275,6.8153,146.7,146.68,6.8157]
[1745862245474,6.8146,146.71,146.68,6.8157]
[1745862246978,6.8149,146.7,146.67,6.816]
[1745862247779,6.8154,146.69,146.66,6.8165]
[1745862248171,6.8154,146.69,146.65,2.0608]
[1745862248172,14.76359957,146.7,146.63,25.36]
[1745862248378,6.8162,146.68,146.65,6.817]
[1745862248678,6.8162,146.68,146.63,25.36]
[1745862248970,6.8162,146.68,146.65,6.817]
[1745862249175,6.8164,146.67,146.65,6.817]
[1745862249974,6.816,146.68,146.65,6.817]
[1745862250279,14.76359957,146.7,146.65,6.817]
[1745862250479,6.816,146.68,146.65,6.817]
[1745862251281,6.8155,146.69,146.66,6.8167]
[1745862251480,14.76359957,146.7,146.63,25.36]
[1745862251882,6.8158,146.68,146.65,6.8169]
[1745862252081,6.8158,146.68,146.63,25.36]
[1745862252681,6.8158,146.68,146.65,6.8168]
[1745862252982,6.8156,146.69,146.63,25.36]
[1745862253284,6.8156,146.69,146.66,6.8165]
[1745862255280,6.8158,146.68,146.66,6.8165]
[1745862255482,18.73519957,146.72,146.65,6.817]
[1745862255682,14.76359957,146.7,146.63,25.36]
[1745862256081,14.76359957,146.7,146.64,6.8174]
[1745862256382,6.8167,146.67,146.64,6.8174]
[1745862256781,14.76359957,146.7,146.64,6.8174]
[1745862257281,6.8165,146.67,146.64,6.8174]
[1745862258080,14.76359957,146.7,146.63,32.178]
[1745862258282,14.76359957,146.68,146.63,25.36]
[1745862258681,14.76359957,146.68,146.63,32.178]
[1745862258883,14.76359957,146.68,146.63,25.36]
[1745862259387,14.76359957,146.68,146.63,32.1779]
[1745862259786,6.8172,146.66,146.63,32.1779]
[1745862262287,6.8172,146.66,146.64,6.8175]
[1745862262784,6.8172,146.66,146.63,32.178]
[1745862263287,6.8172,146.66,146.63,25.36]
[1745862264089,6.8172,146.66,146.64,6.8177]
[1745862264490,6.8172,146.66,146.63,25.36]
[1745862264687,6.8173,146.65,146.63,25.36]
[1745862264989,14.76359957,146.68,146.64,6.8177]
[1745862265190,6.8165,146.67,146.64,6.8177]
[1745862265986,25.34,146.69,146.63,32.1778]
[1745862266490,25.34,146.69,146.63,25.36]
[1745862266885,6.8167,146.67,146.64,6.8177]
[1745862268791,14.76359957,146.68,146.6,40.10359957]
[1745862269885,6.8166,146.67,146.64,6.8175]
[1745862270387,6.8161,146.68,146.65,6.8171]
[1745862270891,44.07519957,146.72,146.64,25.34]
[1745862271088,44.07519957,146.72,146.64,40.10359957]
[1745862271598,6.8152,146.7,146.67,6.8162]
[1745862272293,6.8146,146.71,146.68,6.8157]
[1745862272798,6.8152,146.7,146.67,6.816]
[1745862275901,6.8154,146.69,146.67,6.816]
[1745862276306,44.07519957,146.72,146.67,6.816]
[1745862277502,6.8154,146.69,146.66,6.8165]
[1745862277802,6.8154,146.69,146.64,40.10359957]
[1745862278898,6.8154,146.69,146.66,6.8164]
[1745862280595,44.07519957,146.72,146.67,6.8161]
[1745862281901,6.8152,146.7,146.67,6.8161]
[1745862282103,1.975,146.73,146.69,6.8151]
[1745862282305,25.32,146.75,146.68,14.76359957]
[1745862282598,25.32,146.75,146.69,6.8151]
[1745862283304,14.76359957,146.74,146.68,25.32]
[1745862283507,14.76359957,146.72,146.68,25.32]
[1745862283703,14.76359957,146.72,146.65,29.3004]
[1745862283903,6.8156,146.69,146.65,29.3004]
[1745862284108,14.76359957,146.72,146.65,25.32]
[1745862284608,6.8161,146.68,146.65,32.1369]
[1745862284911,6.8161,146.68,146.65,25.32]
[1745862285412,6.8161,146.68,146.66,6.8165]
[1745862288418,40.08359957,146.72,146.65,32.137]
[1745862289010,6.8162,146.68,146.65,32.137]
[1745862290814,6.8163,146.67,146.65,32.137]
[1745862291708,6.816,146.68,146.65,25.32]
[1745862291914,6.816,146.68,146.66,6.8167]
[1745862292513,6.8163,146.67,146.65,32.137]
[1745862292714,40.08359957,146.72,146.65,32.137]
[1745862292914,2.0255,146.71,146.65,32.137]
[1745862293114,6.816,146.68,146.65,32.137]
[1745862293314,6.816,146.68,146.66,6.8167]
[1745862294814,6.816,146.68,146.64,6.8172]
[1745862295118,6.816,146.68,146.63,25.32]
[1745862295417,6.816,146.68,146.64,6.8174]
[1745862295716,2.0255,146.71,146.64,6.8174]
[1745862296217,6.8161,146.68,146.64,6.8174]
[1745862297017,6.8155,146.69,146.65,6.8171]
[1745862297708,6.8159,146.68,146.65,6.8171]
[1745862298008,14.76359957,146.7,146.63,25.32]
[1745862298213,14.76359957,146.68,146.63,25.32]
[1745862300313,6.8171,146.66,146.63,25.32]
[1745862302417,14.76359957,146.68,146.63,25.32]
[1745862302622,14.76359957,146.64,146.59,515.98]
[1745862302916,6.8184,146.63,146.59,32.1597]
[1745862303124,6.8184,146.63,146.59,25.34]
[1745862303820,40.10359957,146.68,146.6,14.76359957]
[1745862304022,40.10359957,146.68,146.59,25.34]
[1745862304023,25.34,146.68,146.62,14.76359957]
[1745862304224,6.8165,146.67,146.62,14.76359957]
[1745862304423,14.76359957,146.68,146.6,14.76359957]
[1745862304624,6.818,146.64,146.6,6.8191]
[1745862304825,14.76359957,146.66,146.6,6.8191]
[1745862305223,6.8179,146.64,146.61,6.8189]
[1745862305918,14.76359957,146.66,146.59,29.3572]
[1745862306125,14.76359957,146.66,146.59,27.344]
[1745862306727,6.819,146.62,146.59,34.1637]
[1745862308529,14.76359957,146.66,146.59,32.1597]
[1745862309029,14.76359957,146.64,146.59,32.1597]
[1745862309828,14.76359957,146.64,146.6,6.8194]
[1745862310030,18.64789957,146.66,146.6,6.8194]
[1745862310432,3.8843,146.66,146.61,6.819]
[1745862310732,6.8179,146.64,146.61,6.819]
[1745862310931,25.32,146.67,146.6,14.76359957]
[1745862311132,25.32,146.67,146.62,6.8186]
[1745862311332,6.8176,146.65,146.62,6.8186]
[1745862311733,25.32,146.67,146.61,6.8188]
[1745862311929,6.8179,146.64,146.61,6.8188]
[1745862313534,6.8174,146.65,146.62,6.8185]
[1745862313730,25.32,146.67,146.62,6.8185]
[1745862314133,6.8176,146.65,146.62,6.8185]
[1745862314835,6.8179,146.64,146.61,6.8189]
[1745862315132,25.32,146.67,146.61,6.8189]
[1745862315635,25.32,146.67,146.6,6.8194]
[1745862316134,6.8184,146.63,146.6,6.8194]
[1745862316434,6.8184,146.63,146.61,6.8191]
[1745862316637,25.32,146.67,146.61,6.8191]
[1745862316836,6.818,146.64,146.61,6.8191]
[1745862317838,6.8182,146.63,146.61,6.8191]
[1745862318032,6.8182,146.63,146.6,6.8194]
[1745862318336,6.8182,146.63,146.59,25.34]
[1745862318736,6.8182,146.63,146.6,6.8191]
[1745862320336,6.8187,146.62,146.6,6.8191]
[1745862320933,6.8192,146.61,146.59,32.1597]
[1745862322635,6.8195,146.6,146.59,25.34]
[1745862323338,6.8193,146.61,146.59,25.34]
[1745862323838,6.8183,146.63,146.6,6.8193]
[1745862324741,6.8179,146.64,146.61,6.8188]
[1745862324940,4.0561,146.65,146.61,6.8188]
[1745862325339,6.8182,146.63,146.61,6.8188]
[1745862326642,6.8182,146.63,146.6,6.8193]
[1745862327542,6.8187,146.62,146.6,6.8193]
[1745862328843,6.8184,146.63,146.59,25.34]
[1745862329246,6.8184,146.63,146.6,6.8193]
[1745862329844,6.8184,146.63,146.61,6.819]
[1745862330945,6.8186,146.62,146.6,6.8194]
[1745862331546,6.8184,146.63,146.6,6.8194]
[1745862331947,4.0561,146.65,146.6,6.8194]
[1745862332248,6.8187,146.62,146.6,6.8194]
[1745862333451,6.8187,146.62,146.59,32.1598]
[1745862333750,6.8191,146.61,146.59,32.1598]
[1745862334152,6.8188,146.62,146.59,32.1598]
[1745862334450,4.0561,146.65,146.59,32.1598]
[1745862334748,6.819,146.62,146.59,32.1598]
[1745862335050,4.0561,146.65,146.59,32.1598]
[1745862335757,6.819,146.62,146.59,32.1598]
[1745862335950,4.0561,146.65,146.59,32.1598]
[1745862336449,6.819,146.62,146.59,32.1598]
[1745862337253,6.8191,146.61,146.59,32.1598]
[1745862338858,6.8191,146.61,146.59,25.34]
[1745862339456,6.8191,146.61,146.59,32.1599]
[1745862339956,6.8191,146.61,146.59,25.34]
[1745862340153,6.8188,146.62,146.59,25.34]
[1745862340554,6.8188,146.62,146.59,32.1596]
[1745862341562,6.8191,146.61,146.59,32.1596]
[1745862341957,6.8191,146.61,146.59,25.34]
[1745862342558,6.8191,146.61,146.59,32.1598]
[1745862343456,6.8191,146.61,146.59,25.34]
[1745862343757,6.8195,146.6,146.59,25.34]
[1745862343956,14.76359957,146.64,146.59,32.16]
[1745862344458,6.8193,146.61,146.59,32.16]
[1745862347462,16.26587835,146.61,146.59,32.16]
[1745862347660,9.44657835,146.63,146.59,34.78657835]
[1745862347962,9.44657835,146.64,146.6,9.44657835]
[1745862348161,9.44657835,146.64,146.59,34.78657835]
[1745862348364,6.8184,146.63,146.6,6.8191]
[1745862348660,9.44657835,146.62,146.6,6.8191]
[1745862349162,16.26537835,146.62,146.6,6.8191]
[1745862349654,6.8191,146.61,146.59,32.1598]
[1745862349860,14.75931668,146.62,146.59,25.34]
[1745862350264,6.8195,146.6,146.59,25.34]
[1745862350760,6.8195,146.6,146.58,6.8203]
[1745862351461,4.0561,146.65,146.57,14.75931668]
[1745862351863,6.8183,146.63,146.61,6.8189]
[1745862357967,6.8177,146.64,146.62,6.8186]
[1745862358162,25.32,146.67,146.59,40.07931668]
[1745862358566,6.8175,146.65,146.59,40.07931668]
[1745862358867,14.75931668,146.68,146.59,40.07931668]
[1745862359065,14.75931668,146.68,146.6,2.0279]
[1745862359765,27.4471,146.7,146.63,14.75931668]
[1745862359971,516.08,146.73,146.65,14.75931668]
[1745862360166,25.32,146.73,146.65,14.75931668]
[1745862360363,14.75931668,146.72,146.64,25.32]
[1745862361170,14.75931668,146.72,146.67,6.816]
[1745862361867,14.75931668,146.7,146.64,25.32]
[1745862362270,6.8165,146.67,146.64,32.1374]
[1745862362774,6.8165,146.67,146.64,25.32]
[1745862362972,6.816,146.68,146.65,6.8169]
[1745862363170,14.75931668,146.7,146.65,6.8169]
[1745862363372,6.8162,146.68,146.65,6.8169]
[1745862364475,6.8152,146.7,146.67,6.816]
[1745862364667,25.32,146.73,146.67,6.816]
[1745862364868,6.8151,146.7,146.67,6.816]
[1745862365069,25.32,146.73,146.67,6.816]
[1745862365373,25.32,146.73,146.68,6.8157]
[1745862366575,6.8148,146.71,146.68,6.8157]
[1745862367776,25.32,146.73,146.65,14.75931668]
[1745862367777,6.8142,146.72,146.65,14.75931668]
[1745862368074,6.8142,146.72,146.65,16.80071668]
[1745862368270,6.8142,146.72,146.69,6.8149]
[1745862368870,1.18641756,146.81,146.69,40.05931668]
[1745862369081,14.75931668,146.8,146.7,2.0414]
[1745862369378,25.3,146.82,146.7,2.0414]
[1745862369379,6.8115,146.78,146.7,2.0414]
[1745862370281,14.75931668,146.81,146.73,14.75931668]
[1745862370476,14.75931668,146.81,146.73,40.05931668]
[1745862370979,6.8105,146.8,146.76,6.8118]
[1745862371184,14.75931668,146.81,146.73,40.05931668]
[1745862371379,363.0,146.91,146.79,14.75931668]
[1745862371583,18.75971668,146.89,146.8,26.42]
[1745862371882,45.17971668,146.89,146.8,26.42]
[1745862372084,14.75931668,146.87,146.8,26.42]
[1745862372283,21.56661668,146.87,146.82,6.8093]
[1745862372983,6.8075,146.86,146.81,6.8096]
[1745862373183,30.4204,146.89,146.8,26.42]
[1745862373184,14.75931668,146.85,146.8,26.42]
[1745862373384,30.4204,146.89,146.8,26.42]
[1745862373683,14.75931668,146.86,146.8,33.2301]
[1745862373883,14.75931668,146.84,146.8,26.42]
[1745862374077,21.56811668,146.84,146.8,26.42]
[1745862374483,21.56811668,146.84,146.8,33.2301]
[1745862375186,6.8088,146.84,146.8,33.2301]
[1745862375485,6.8083,146.85,146.8,26.42]
[1745862375886,6.8083,146.85,146.8,33.2298]
[1745862376185,6.8076,146.86,146.8,26.42]
[1745862376686,6.8083,146.85,146.81,6.8096]
[1745862377681,14.75931668,146.86,146.8,26.42]
[1745862377886,14.75931668,146.82,146.77,26.4]
[1745862378186,14.75931668,146.84,146.77,26.4]
[1745862378782,6.809,146.83,146.77,26.4]
[1745862378979,28.4722,146.85,146.77,26.4]
[1745862379492,6.8087,146.84,146.8,6.8099]
[1745862379691,28.4722,146.85,146.8,6.8099]
[1745862380088,6.8094,146.82,146.79,6.8106]
[1745862380496,6.8105,146.8,146.77,26.4]
[1745862380887,14.75931668,146.82,146.77,26.4]
[1745862381095,6.8096,146.82,146.77,26.4]
[1745862381288,14.75931668,146.82,146.77,26.4]
[1745862381484,14.75931668,146.8,146.74,26.4]
[1745862382091,14.75931668,146.78,146.74,26.4]
[1745862382292,14.75931668,146.78,146.71,28.4543]
[1745862382891,41.15931668,146.8,146.71,43.21361668]
[1745862383895,6.811,146.79,146.71,43.21361668]
[1745862384295,41.15931668,146.8,146.71,43.21361668]
[1745862384892,41.15931668,146.8,146.72,2.0894]
[1745862385093,6.8108,146.79,146.72,2.0894]
[1745862385894,26.4,146.8,146.72,2.0894]
[1745862385895,6.8113,146.78,146.72,2.0894]
[1745862386193,26.4,146.8,146.75,6.8126]
[1745862386496,6.8111,146.79,146.75,6.8126]
[1745862386793,26.4,146.8,146.75,6.8126]
[1745862387295,26.4,146.8,146.74,6.813]
[1745862387497,26.4,146.8,146.71,28.4543]
[1745862388496,26.4,146.8,146.75,6.8125]
[1745862388697,1.9744,146.83,146.75,26.4]
[1745862389796,23.56419669,146.81,146.75,26.4]
[1745862390197,6.8112,146.78,146.75,33.2124]
[1745862390696,6.8112,146.78,146.75,26.4]
[1745862390900,23.56419669,146.81,146.75,26.4]
[1745862391198,4.0057,146.8,146.72,29.4632]
[1745862391399,6.8123,146.76,146.73,6.8133]
[1745862391589,4.0057,146.8,146.73,6.8133]
[1745862391789,4.0057,146.8,146.72,27.52]
[1745862391988,6.8128,146.75,146.72,34.3336]
[1745862392189,6.8128,146.75,146.72,27.52]
[1745862392393,6.8128,146.75,146.72,34.3337]
[1745862393301,6.8128,146.75,146.73,6.8133]
[1745862394298,6.8133,146.74,146.72,27.52]
[1745862394500,31.5257,146.8,146.72,27.52]
[1745862394896,6.8128,146.75,146.72,34.3337]
[1745862395603,6.8135,146.73,146.72,27.52]
[1745862395906,6.8135,146.73,146.67,2.1289]
[1745862395907,23.56419669,146.75,146.68,27.52]
[1745862396201,6.8147,146.71,146.68,34.3356]
[1745862396397,6.8147,146.71,146.68,27.52]
[1745862396598,27.52,146.76,146.68,27.52]
[1745862396899,2.0863,146.77,146.68,27.52]
[1745862397301,6.8127,146.75,146.72,6.8136]
[1745862398204,6.8131,146.74,146.72,6.8136]
[1745862398503,2.0863,146.77,146.72,6.8136]
[1745862398704,6.8128,146.75,146.73,6.8135]
[1745862399104,51.08419669,146.82,146.72,27.52]
[1745862399307,6.8119,146.77,146.74,6.8128]
[1745862399500,51.08419669,146.82,146.72,27.52]
[1745862400006,6.8123,146.76,146.72,27.52]
[1745862400707,6.8123,146.76,146.73,6.8134]
[1745862401200,6.8123,146.76,146.74,6.813]
[1745862403006,6.8118,146.77,146.74,6.813]
[1745862403803,6.8121,146.76,146.73,6.8133]
[1745862404005,6.8121,146.76,146.72,27.52]
[1745862404205,6.8119,146.77,146.74,6.8128]
[1745862404604,51.08419669,146.82,146.74,6.8128]
[1745862404802,6.8119,146.77,146.74,6.8128]
[1745862405111,51.08419669,146.82,146.74,6.8128]
[1745862405312,6.8124,146.76,146.72,27.52]
[1745862405911,6.8118,146.77,146.74,6.8127]
[1745862406311,51.08419669,146.82,146.74,6.8127]
[1745862407505,6.8121,146.77,146.74,6.8127]
[1745862409518,6.8121,146.76,146.74,6.8127]
[1745862410116,6.8118,146.77,146.74,6.8127]
[1745862412115,14.72999631,146.81,146.72,42.24999631]
[1745862412322,16.77749631,146.83,146.76,14.72999631]
[1745862412619,16.77749631,146.83,146.77,27.52]
[1745862412820,6.8096,146.82,146.79,6.8104]
[1745862413918,6.8096,146.82,146.8,6.8101]
[1745862415025,6.8096,146.82,146.79,6.8105]
[1745862415923,6.8096,146.82,146.8,6.8102]
[1745862417827,6.8098,146.81,146.79,6.8105]
[1745862418326,6.8096,146.82,146.8,6.8102]
[1745862419624,6.8096,146.82,146.79,6.8105]
[1745862420029,6.8096,146.82,146.77,27.52]
[1745862421227,6.8096,146.82,146.79,6.8103]
[1745862421827,6.8096,146.82,146.8,6.8102]
[1745862422029,42.24999631,146.85,146.8,6.8102]
[1745862423128,6.8093,146.83,146.8,6.8102]
[1745862423629,6.8093,146.83,146.81,6.8097]
[1745862424225,14.72999631,146.83,146.77,27.52]
[1745862424533,14.72999631,146.8,146.74,27.16]
[1745862424724,6.8114,146.78,146.74,27.16]
[1745862424924,14.72999631,146.78,146.74,27.16]
[1745862425926,6.8119,146.77,146.74,27.16]
[1745862426730,14.72999631,146.78,146.74,27.16]
[1745862427230,6.8117,146.77,146.74,33.9727]
[1745862427631,14.72999631,146.78,146.74,33.9727]
[1745862427930,14.72999631,146.8,146.74,27.16]
[1745862428122,16.77669631,146.82,146.74,27.16]
[1745862428431,6.8101,146.81,146.79,6.8105]
[1745862428627,27.16,146.84,146.77,14.72999631]
[1745862428829,4.0566,146.85,146.78,27.16]
[1745862429136,4.0566,146.85,146.8,6.81]
[1745862429833,6.8093,146.83,146.8,6.81]
[1745862430425,6.8086,146.84,146.81,6.8096]
[1745862432232,6.8082,146.85,146.82,6.8092]
[1745862432735,50.70537544,146.87,146.78,27.16]
[1745862432736,27.16,146.87,146.78,27.16]
[1745862432930,27.16,146.87,146.79,1.9672]
[1745862433234,6.8082,146.85,146.82,6.809]
[1745862433435,23.54537544,146.89,146.79,25.51257544]
[1745862433735,6.8075,146.86,146.83,6.8086]
[1745862434337,6.8075,146.86,146.82,33.9691]
[1745862435133,6.808,146.85,146.82,33.9691]
[1745862435738,23.54537544,146.89,146.82,27.16]
[1745862436136,23.54537544,146.89,146.79,29.1072]
[1745862436338,23.54537544,146.89,146.8,6.81]
[1745862436940,6.8092,146.83,146.8,6.81]
[1745862437639,23.54537544,146.89,146.8,6.81]
[1745862438041,6.8091,146.83,146.8,6.81]
[1745862438433,37.15807544,146.89,146.79,29.1072]
[1745862438740,23.54537544,146.86,146.79,29.1072]
[1745862438941,23.54537544,146.86,146.8,6.81]
[1745862439143,6.8092,146.83,146.8,6.81]
[1745862439345,23.54537544,146.86,146.79,29.1072]
[1745862439643,23.54537544,146.86,146.8,6.81]
[1745862439838,6.8091,146.83,146.8,6.81]
[1745862440340,23.54537544,146.86,146.8,6.81]
[1745862440643,56.70067544,146.9,146.79,29.1072]
[1745862441241,6.8086,146.84,146.81,6.8095]
[1745862441445,27.14,146.89,146.79,29.1072]
[1745862441944,27.14,146.89,146.82,6.8093]
[1745862442347,6.8082,146.85,146.82,6.8093]
[1745862446347,6.8085,146.84,146.81,6.8096]
[1745862446551,6.8085,146.84,146.79,29.1072]
[1745862446752,27.14,146.89,146.79,29.1072]
[1745862446955,23.54537544,146.87,146.79,29.1072]
[1745862447353,6.8091,146.83,146.79,29.1072]
[1745862447656,6.8091,146.83,146.8,6.8101]
[1745862448456,6.8091,146.83,146.81,6.8097]
[1745862448656,6.8086,146.84,146.81,6.8097]
[1745862449860,6.8082,146.85,146.82,6.8091]
[1745862450155,6.8082,146.85,146.79,29.1072]
[1745862450858,23.54537544,146.87,146.79,29.1072]
[1745862451059,23.54537544,146.87,146.83,6.8088]
[1745862451257,6.8082,146.85,146.79,29.1072]
[1745862451460,6.8082,146.85,146.79,43.81917724]
[1745862452757,6.8082,146.85,146.82,6.8089]
[1745862452958,6.8077,146.86,146.79,43.81917724]
[1745862453159,27.14,146.89,146.81,14.71197724]
[1745862453458,4.0699,146.9,146.86,6.8074]
[1745862453859,4.0699,146.9,146.85,6.8077]
[1745862454054,6.8068,146.88,146.85,6.8077]
[1745862454256,4.0699,146.9,146.85,6.8077]
[1745862455861,6.807,146.87,146.85,6.8077]
[1745862456164,6.807,146.87,146.84,33.808]
[1745862456363,6.807,146.87,146.84,27.0]
[1745862456557,6.807,146.87,146.85,6.8077]
[1745862456967,6.8067,146.88,146.84,27.0]
[1745862457158,6.8067,146.88,146.85,6.8075]
[1745862457354,6.8067,146.88,146.84,27.0]
[1745862457658,6.807,146.87,146.84,27.0]
[1745862458263,6.807,146.87,146.85,6.8077]
[1745862458563,6.8068,146.88,146.84,27.0]
[1745862459263,6.807,146.87,146.85,6.8077]
[1745862459767,6.8077,146.86,146.84,27.0]
[1745862460258,14.71197724,146.89,146.84,27.0]
[1745862460466,6.8079,146.85,146.84,27.0]
[1745862460762,14.71197724,146.87,146.81,26.98]
[1745862460962,6.8081,146.85,146.82,6.8091]
[1745862461264,14.71197724,146.87,146.81,26.98]
[1745862461664,6.8077,146.86,146.83,6.8085]
[1745862462163,6.8073,146.87,146.84,6.808]
[1745862462571,16.68047724,146.89,146.84,6.808]
[1745862462761,6.8075,146.86,146.84,6.808]
[1745862463368,6.8072,146.87,146.84,6.808]
[1745862465067,6.8072,146.87,146.85,6.8078]
[1745862465269,16.68047724,146.89,146.81,41.69197724]
[1745862465467,31.0499,146.9,146.81,41.69197724]
[1745862465765,6.8068,146.88,146.81,41.69197724]
[1745862466167,6.807,146.87,146.85,6.8076]
[1745862466961,6.807,146.87,146.84,6.8082]
[1745862467160,6.8075,146.86,146.84,6.8082]
[1745862468862,6.8072,146.87,146.81,41.69197724]
[1745862469260,6.8072,146.87,146.85,6.8078]
[1745862469464,6.8072,146.87,146.81,41.69197724]
[1745862469768,6.8072,146.87,146.84,6.808]
[1745862470068,6.8072,146.87,146.81,41.69197724]
[1745862470369,6.8067,146.88,146.85,6.8075]
[1745862470562,2.0979,146.9,146.83,14.71197724]
[1745862470760,6.8064,146.89,146.86,6.8071]
[1745862470958,6.8064,146.89,146.83,14.71197724]
[1745862471868,6.8067,146.88,146.83,14.71197724]
[1745862472167,6.8067,146.88,146.85,6.8075]
[1745862472365,14.71197724,146.92,146.83,14.71197724]
[1745862472570,14.71197724,146.92,146.86,6.8072]
[1745862472975,6.8063,146.89,146.86,6.8072]
[1745862475572,6.8063,146.89,146.87,6.807]
[1745862477371,6.8058,146.9,146.87,6.807]
[1745862477871,14.71197724,146.92,146.87,6.807]
[1745862478271,6.806,146.9,146.87,6.807]
[1745862478571,6.806,146.9,146.85,26.98]
[1745862479167,6.806,146.9,146.87,6.8066]
[1745862479773,6.806,146.9,146.88,6.8065]
[1745862480375,6.806,146.9,146.87,6.8067]
[1745862480874,6.806,146.9,146.85,26.98]
[1745862481174,6.8052,146.91,146.85,41.69197724]
[1745862481566,6.8049,146.92,146.85,41.69197724]
[1745862481769,14.71197724,146.94,146.85,41.69197724]
[1745862481969,14.71197724,146.94,146.88,6.8062]
[1745862482169,6.8054,146.91,146.88,6.8062]
[1745862482367,6.8054,146.91,146.85,41.69197724]
[1745862482877,14.71197724,146.94,146.85,41.69197724]
[1745862483071,26.48,146.95,146.85,41.69197724]
[1745862483072,26.48,146.95,146.87,14.71197724]